bitfinex/quotes_ETHUSD_20250929
["timestamp","ask_amount","ask_price","bid_price","bid_amount"]
[1759146402030,14.43964158,4113.3,4113.2,0.6865]
[1759146402228,13.08536153,4113.3,4113.2,0.6865]
[1759146402453,8.58236153,4113.3,4113.2,0.6865]
[1759146402732,11.62336153,4113.3,4113.2,0.6865]
[1759146403525,11.74416153,4113.3,4113.2,0.6865]
[1759146404833,11.74416153,4113.3,4113.2,0.002]
[1759146405034,15.34971569,4113.3,4113.2,0.002]
[1759146405404,15.34971569,4113.3,4113.2,0.6865]
[1759146405603,14.17529954,4113.3,4113.2,0.002]
[1759146406004,11.74416153,4113.3,4113.2,0.002]
[1759146406217,14.17529954,4113.3,4113.2,0.002]
[1759146407356,14.17529954,4113.3,4113.2,0.6865]
[1759146407558,11.74416153,4113.3,4113.2,0.6865]
[1759146408043,14.17529954,4113.3,4113.2,0.6865]
[1759146408238,14.17529954,4113.3,4113.2,0.002]
[1759146408817,11.74416153,4113.3,4113.2,0.6865]
[1759146409052,11.74416153,4113.3,4113.2,0.002]
[1759146409223,11.74416153,4113.3,4113.2,0.6865]
[1759146409424,14.17529954,4113.3,4113.2,0.2395]
[1759146409963,14.17529954,4113.3,4113.2,0.002]
[1759146410455,13.41849466,4113.3,4113.2,0.002]
[1759146410653,15.02719643,4113.3,4113.2,0.002]
[1759146413050,15.02819643,4113.3,4113.2,0.2395]
[1759146413638,15.02819643,4113.3,4113.2,15.1865]
[1759146413859,13.41949466,4113.3,4113.2,15.1865]
[1759146414481,13.41949466,4113.3,4113.2,14.7395]
[1759146414779,13.41949466,4113.3,4113.2,14.502]
[1759146416278,13.41949466,4113.3,4113.2,0.002]
[1759146418555,10.98835665,4113.3,4113.2,0.6865]
[1759146418766,6.1628,4113.3,4113.2,0.6865]
[1759146419749,8.59393801,4113.3,4113.2,0.6865]
[1759146420150,8.59393801,4113.3,4113.2,0.2395]
[1759146420351,10.17898961,4113.3,4113.2,0.002]
[1759146421395,15.00454626,4113.3,4113.2,0.002]
[1759146421593,16.67564626,4113.3,4113.2,0.002]
[1759146421900,17.23215286,4113.3,4113.2,0.002]
[1759146422254,17.40715286,4113.3,4113.2,0.002]
[1759146423184,17.23215286,4113.3,4113.2,0.002]
[1759146423391,17.19805286,4113.3,4113.2,0.002]
[1759146424255,18.19915286,4113.3,4113.2,0.002]
[1759146424452,18.19835286,4113.3,4113.2,0.002]
[1759146425191,3.22319712,4113.2,4113.1,0.002]
[1759146425354,10.15901735,4113.2,4113.1,0.002]
[1759146425558,10.36811735,4113.2,4113.1,0.002]
[1759146426289,10.74952538,4113.2,4113.1,0.002]
[1759146426479,13.74952538,4113.2,4113.1,0.002]
[1759146429385,13.98702538,4113.2,4113.1,0.002]
[1759146430010,4.68543357,4112.8,4112.7,0.002]
[1759146430224,16.26266948,4112.8,4112.7,0.002]
[1759146430435,16.47176948,4112.8,4112.7,0.002]
[1759146430599,16.26266948,4112.8,4112.7,0.002]
[1759146430798,16.96616948,4112.8,4112.7,0.002]
[1759146431691,13.92616948,4112.8,4112.7,0.002]
[1759146431890,16.96716948,4112.8,4112.7,0.002]
[1759146433588,17.34859535,4112.8,4112.7,0.002]
[1759146440539,14.30759535,4112.8,4112.7,0.002]
[1759146440728,15.84491609,4112.8,4112.7,0.6837]
[1759146441033,15.46349022,4112.8,4112.7,0.6837]
[1759146444727,13.03205665,4112.8,4112.7,0.6837]
[1759146445253,15.46349022,4112.8,4112.7,0.6837]
[1759146446856,11.57005665,4112.8,4112.7,0.6837]
[1759146447456,14.00149022,4112.8,4112.7,0.6837]
[1759146449525,14.00069022,4112.8,4112.7,0.6837]
[1759146450254,14.00069022,4112.8,4112.7,15.1837]
[1759146450822,0.38240496,4113.1,4112.7,16.70227]
[1759146451027,0.1208,4112.9,4112.8,0.6817]
[1759146452863,3.0,4113.0,4112.8,0.6817]
[1759146453085,3.0,4113.0,4112.7,18.45205767]
[1759146453286,3.0,4113.0,4112.9,0.6817]
[1759146456961,3.0,4113.0,4112.9,15.1817]
[1759146458456,5.43131534,4113.0,4112.9,14.5]
[1759146458684,5.46541534,4113.0,4112.9,14.5]
[1759146458907,6.16284692,4113.0,4112.9,14.5]
[1759146459614,2.43143357,4112.8,4112.7,0.002]
[1759146459787,13.29699022,4112.8,4112.7,0.002]
[1759146460921,15.44069022,4112.8,4112.7,0.002]
[1759146461104,15.64979022,4112.8,4112.7,0.002]
[1759146463685,15.44069022,4112.8,4112.7,0.002]
[1759146464084,17.23140078,4112.8,4112.7,0.002]
[1759146464419,18.6139171,4112.8,4112.7,0.002]
[1759146464923,18.4389171,4112.8,4112.7,0.002]
[1759146465125,18.6139171,4112.8,4112.7,0.002]
[1759146466177,18.4048171,4112.8,4112.7,0.002]
[1759146466447,18.6139171,4112.8,4112.7,0.002]
[1759146466991,18.4048171,4112.8,4112.7,0.002]
[1759146467213,18.4389171,4112.8,4112.7,0.002]
[1759146467615,18.4048171,4112.8,4112.7,0.002]
[1759146468026,18.4389171,4112.8,4112.7,0.002]
[1759146469716,18.4048171,4112.8,4112.7,0.002]
[1759146470251,19.16592444,4112.8,4112.7,0.002]
[1759146470558,19.20002444,4112.8,4112.7,0.002]
[1759146470758,19.16592444,4112.8,4112.7,0.002]
[1759146470971,19.37502444,4112.8,4112.7,0.002]
[1759146472254,19.20002444,4112.8,4112.7,0.002]
[1759146472434,19.37502444,4112.8,4112.7,0.002]
[1759146472936,19.16592444,4112.8,4112.7,0.002]
[1759146473854,19.20002444,4112.8,4112.7,0.002]
[1759146474148,19.37502444,4112.8,4112.7,0.002]
[1759146474448,19.37422444,4112.8,4112.7,0.002]
[1759146475631,19.16512444,4112.8,4112.7,0.002]
[1759146477350,19.16512444,4112.8,4112.7,0.2301]
[1759146479161,19.16512444,4112.8,4112.7,0.002]
[1759146480052,19.16512444,4112.8,4112.7,0.2301]
[1759146480441,19.16512444,4112.8,4112.7,0.002]
[1759146485152,19.16612444,4112.8,4112.7,0.002]
[1759146488955,19.16612444,4112.8,4112.6,1e-08]
[1759146488956,6.22349269,4112.7,4112.6,1e-08]
[1759146489159,7.68567007,4112.4,4112.3,0.002]
[1759146489339,16.31133406,4112.4,4112.3,0.002]
[1759146489548,6.8941432,4111.6,4111.5,0.6749]
[1759146489747,15.51980719,4111.6,4111.5,0.6749]
[1759146490470,16.25160643,4111.6,4111.5,0.6749]
[1759146490855,16.37084528,4111.6,4111.5,0.6749]
[1759146491375,18.16155584,4111.6,4111.5,0.6749]
[1759146491550,16.37084528,4111.6,4111.5,0.6749]
[1759146495577,16.37084528,4111.6,4111.5,15.1749]
[1759146497390,9.20294244,4111.6,4111.5,15.1749]
[1759146497681,8.5946601,4111.6,4111.5,15.1749]
[1759146497872,8.4711432,4111.6,4111.5,15.1749]
[1759146499368,8.4703432,4111.6,4111.5,15.1749]
[1759146500283,8.4703432,4111.6,4111.5,0.6749]
[1759146500486,3.0,4111.5,4110.8,0.1216]
[1759146500684,2.43241595,4111.2,4110.8,0.1216]
[1759146501185,2.43245943,4111.1,4110.9,15.218]
[1759146501387,5.432439,4111.1,4111.0,0.718]
[1759146501567,5.554039,4111.1,4111.0,0.718]
[1759146502587,5.554039,4111.1,4111.0,15.218]
[1759146504298,5.554039,4111.1,4111.0,14.5]
[1759146504582,5.554039,4111.1,4111.0,14.502]
[1759146504756,7.36145129,4111.1,4111.0,14.502]
[1759146505759,7.36145129,4111.1,4111.0,0.002]
[1759146506466,7.60725129,4111.1,4111.0,0.002]
[1759146507700,9.06925129,4111.1,4111.0,0.002]
[1759146508092,9.86125129,4111.1,4111.0,0.002]
[1759146512521,14.65591528,4111.1,4111.0,0.72]
[1759146515933,15.52010299,4111.1,4111.0,0.72]
[1759146517829,15.52010299,4111.1,4111.0,0.2478]
[1759146518223,15.52010299,4111.1,4111.0,0.72]
[1759146520025,15.52010299,4111.1,4111.0,0.2478]
[1759146520712,15.52010299,4111.1,4111.0,0.002]
[1759146523447,18.42779643,4111.1,4111.0,0.002]
[1759146523746,18.95064565,4111.1,4111.0,0.002]
[1759146524418,18.94984565,4111.1,4111.0,0.002]
[1759146528300,15.11884565,4111.1,4111.0,0.002]
[1759146528477,16.25125221,4111.1,4111.0,0.002]
[1759146529400,16.25125221,4111.1,4111.0,0.2341]
[1759146531304,16.25125221,4111.1,4111.0,0.002]
[1759146532306,15.49585656,4111.1,4111.0,0.002]
[1759146534034,15.49585656,4111.1,4111.0,0.2341]
[1759146534207,15.49585656,4111.1,4111.0,0.6989]
[1759146535280,14.03385656,4111.1,4111.0,0.6989]
[1759146535482,13.30190734,4111.1,4111.0,0.6989]
[1759146539023,13.30190734,4111.1,4111.0,15.1989]
[1759146540907,13.30290734,4111.1,4111.0,15.1989]
[1759146541506,3.1226,4111.1,4111.0,15.69910553]
[1759146541709,0.001,4111.1,4111.0,15.69910553]
[1759146542207,0.001,4111.1,4111.0,18.1316037]
[1759146543025,0.001,4111.1,4111.0,15.69910553]
[1759146543415,2.433439,4111.1,4111.0,14.502]
[1759146543616,5.555039,4111.1,4111.0,14.502]
[1759146544124,5.555039,4111.1,4111.0,0.002]
[1759146544422,7.228139,4111.1,4111.0,0.002]
[1759146544999,7.60970558,4111.1,4111.0,0.002]
[1759146545200,9.47412112,4111.1,4111.0,0.002]
[1759146546340,9.26502112,4111.1,4111.0,0.002]
[1759146549341,9.26422112,4111.1,4111.0,0.002]
[1759146551532,14.09548946,4111.1,4111.0,0.002]
[1759146551926,14.8273744,4111.1,4111.0,0.002]
[1759146564328,14.8273744,4111.1,4111.0,0.2411]
[1759146566073,14.8273744,4111.1,4111.0,0.002]
[1759146574365,14.8265744,4111.1,4111.0,0.002]
[1759146578588,14.8275744,4111.1,4111.0,0.002]
[1759146579689,2.43261652,4110.8,4110.7,0.59114]
[1759146579992,10.30288486,4110.8,4110.7,0.59114]
[1759146580193,13.30288486,4110.8,4110.7,0.59114]
[1759146580391,13.30288486,4110.8,4110.6,0.002]
[1759146580595,5.4326757,4110.7,4110.6,0.002]
[1759146580793,5.4326757,4110.7,4110.6,0.2329]
[1759146580964,5.53026655,4110.7,4110.6,0.2329]
[1759146581791,5.53026655,4110.7,4110.6,0.6967]
[1759146583686,6.99426655,4110.7,4110.6,0.002]
[1759146583888,8.76087166,4110.7,4110.6,0.002]
[1759146586640,8.76087166,4110.7,4110.6,0.6967]
[1759146587591,8.76087166,4110.7,4110.6,0.2329]
[1759146589318,8.76087166,4110.7,4110.6,0.002]
[1759146591526,9.55287166,4110.7,4110.6,0.002]
[1759146591706,9.85977166,4110.7,4110.6,0.002]
[1759146592307,15.45236369,4110.7,4110.6,0.002]
[1759146596509,15.14546369,4110.7,4110.6,0.002]
[1759146597131,15.45236369,4110.7,4110.6,0.002]
[1759146598142,15.45336369,4110.7,4110.6,0.002]
[1759146598434,15.14646369,4110.7,4110.6,0.002]
[1759146598638,15.45336369,4110.7,4110.6,0.002]
[1759146599304,15.45256369,4110.7,4110.6,0.002]
[1759146600514,3.89697163,4110.2,4110.1,0.2309]
[1759146600716,15.52756366,4110.2,4110.1,0.2309]
[1759146600923,2.43344527,4109.4,4109.3,14.5]
[1759146601546,3.0,4109.4,4109.3,15.1947]
[1759146606028,5.43344527,4109.4,4109.3,15.1947]
[1759146609254,3.0,4109.4,4109.3,15.1947]
[1759146611359,3.0,4109.4,4109.3,0.6947]
[1759146611936,3.0,4109.4,4109.3,15.1947]
[1759146614170,3.0,4109.5,4109.3,15.1947]
[1759146614365,3.0,4109.5,4109.4,0.707]
[1759146614879,3.0,4109.8,4109.5,2.43338605]
[1759146615029,0.1216,4109.9,4109.5,2.43338605]
[1759146615030,3.1216,4109.9,4109.6,0.02433326]
[1759146615362,0.1216,4109.9,4109.7,0.707]
[1759146615529,0.1216,4109.9,4109.8,0.707]
[1759146617865,0.1216,4109.9,4109.8,15.207]
[1759146618042,0.1216,4109.9,4109.8,16.97346567]
[1759146621688,0.1216,4110.3,4109.8,16.97346567]
[1759146621850,0.1216,4110.3,4109.9,5.49548071]
[1759146622172,0.73190458,4110.4,4110.1,2.43300907]
[1759146622373,0.1216,4110.6,4110.2,1.59244554]
[1759146622575,0.73188672,4110.5,4110.3,0.2335]
[1759146622779,0.73188672,4110.5,4110.3,0.707]
[1759146622986,0.73188672,4110.5,4110.2,3.31838848]
[1759146623290,0.73188672,4110.5,4110.3,0.707]
[1759146623490,3.1216,4110.6,4110.4,0.707]
[1759146623671,3.1216,4110.6,4110.5,0.707]
[1759146623872,3.85345458,4110.6,4110.5,0.707]
[1759146624175,3.85265458,4110.6,4110.5,0.707]
[1759146624581,3.85265458,4110.6,4110.5,0.697014]
[1759146624979,0.001,4110.7,4110.5,0.697014]
[1759146625168,0.001,4110.7,4110.6,0.2335]
[1759146625372,0.73284744,4110.7,4110.6,0.2335]
[1759146625766,0.73284744,4110.7,4110.6,14.7335]
[1759146626596,0.73284744,4110.7,4110.6,15.207]
[1759146626770,0.001,4110.7,4110.6,15.207]
[1759146629804,0.001,4110.7,4110.6,17.32709834]
[1759146630002,0.001,4110.7,4110.6,19.88143322]
[1759146633425,0.001,4110.7,4110.6,19.97898408]
[1759146634134,0.001,4110.7,4110.6,14.5]
[1759146634319,0.098573,4110.7,4110.6,14.5]
[1759146640930,0.098573,4110.7,4110.6,15.1978]
[1759146643811,0.098573,4110.7,4110.6,17.63053488]
[1759146644245,0.001,4110.7,4110.6,17.63053488]
[1759146644438,0.001,4110.7,4110.6,20.06217283]
[1759146649162,0.0002,4110.7,4110.6,20.06217283]
[1759146650324,0.0002,4110.7,4110.6,5.56217283]
[1759146650520,0.0002,4110.7,4110.6,3.25213488]
[1759146650726,0.0002,4110.7,4110.6,3.27646222]
[1759146651459,0.0002,4110.7,4110.6,17.77646222]
[1759146651659,0.0002,4110.7,4110.6,17.75213488]
[1759146652739,0.0002,4110.7,4110.6,17.05433488]
[1759146652951,0.0002,4110.7,4110.6,19.57249713]
[1759146653264,0.0002,4110.7,4110.6,19.81809713]
[1759146653433,0.0002,4110.7,4110.6,20.27029713]
[1759146654280,0.0002,4110.7,4110.6,25.0984837]
[1759146654564,0.001,4111.1,4111.0,2.43249817]
[1759146654731,0.001,4111.1,4111.0,10.29668474]
[1759146654931,0.001,4111.1,4111.0,11.11608474]
[1759146655132,0.001,4111.1,4111.0,25.61608474]
[1759146656457,0.001,4111.1,4111.0,25.71362253]
[1759146656657,0.001,4111.1,4111.0,28.23178478]
[1759146657380,0.001,4111.1,4111.0,23.40359821]
[1759146657671,0.001,4111.1,4111.0,28.23178478]
[1759146658057,0.001,4111.1,4111.0,19.66979821]
[1759146658264,0.001,4111.1,4111.0,27.77958478]
[1759146658478,0.001,4111.1,4111.0,28.23178478]
[1759146662367,0.001,4111.1,4111.0,32.02378478]
[1759146666984,0.001,4111.2,4111.1,6.224439]
[1759146667204,0.001,4111.6,4111.5,11.05238892]
[1759146667381,0.001,4111.6,4111.5,14.08738892]
[1759146667685,0.001,4111.6,4111.5,29.40678892]
[1759146667899,0.001,4111.6,4111.5,29.50430649]
[1759146670365,0.001,4111.6,4111.5,29.98514124]
[1759146670560,0.001,4111.6,4111.5,30.51418051]
[1759146672786,0.001,4111.6,4111.5,35.34236708]
[1759146672969,0.001,4112.0,4111.9,3.22396575]
[1759146673185,0.001,4112.0,4111.9,11.11147197]
[1759146673374,0.001,4112.0,4111.9,11.87755232]
[1759146673575,0.001,4112.0,4111.9,28.24152628]
[1759146674087,0.0002,4112.0,4111.9,28.24152628]
[1759146674682,0.0002,4112.0,4111.9,31.24152628]
[1759146675183,0.001,4112.1,4112.0,6.22390661]
[1759146675372,0.001,4112.1,4112.0,6.93090661]
[1759146675586,0.001,4112.1,4112.0,9.44906886]
[1759146675903,0.001,4112.1,4112.0,23.94906886]
[1759146676286,0.001,4113.1,4112.4,6.22367007]
[1759146676603,0.001,4113.3,4113.2,2.43119712]
[1759146676900,0.001,4113.3,4113.2,29.64688223]
[1759146677101,0.001,4113.3,4113.2,30.32957026]
[1759146677589,0.001,4113.3,4113.2,25.59886561]
[1759146677906,0.001,4113.3,4113.2,21.75938369]
[1759146678199,0.001,4113.3,4113.2,27.21345359]
[1759146678617,0.3181,4113.3,4113.2,19.35026702]
[1759146678903,0.3181,4113.3,4113.2,19.96619712]
[1759146679702,0.3181,4113.3,4113.2,14.5]
[1759146680101,0.3181,4113.3,4113.2,17.534]
[1759146681380,0.3181,4113.3,4113.2,14.5]
[1759146681581,0.3181,4113.3,4113.2,17.534]
[1759146682374,0.3181,4113.3,4113.2,19.96519712]
[1759146684098,0.3181,4113.3,4113.2,17.534]
[1759146685010,0.3181,4113.3,4113.2,14.5]
[1759146685300,0.3181,4113.3,4113.2,17.534]
[1759146686112,0.3181,4113.3,4113.2,14.5]
[1759146686317,0.3181,4113.3,4111.6,2.4321432]
[1759146686318,3.5640691,4113.3,4111.6,2.4321432]
[1759146686480,3.5640691,4113.3,4111.4,5.07408657]
[1759146686481,0.1208,4113.0,4112.4,2.43165606]
[1759146686680,0.3171,4112.9,4112.5,17.534]
[1759146686888,0.3171,4112.8,4112.5,17.534]
[1759146687215,0.3171,4112.7,4112.5,17.534]
[1759146687418,2.55215438,4113.0,4112.5,17.534]
[1759146687623,0.3171,4112.6,4112.5,17.534]
[1759146687796,0.3181,4113.3,4112.7,0.1208]
[1759146688127,0.3181,4113.3,4112.8,5.46542591]
[1759146688425,0.3171,4113.2,4112.8,5.46542591]
[1759146688592,0.2828,4113.1,4112.8,5.46542591]
[1759146688788,0.3171,4113.0,4112.7,0.1208]
[1759146688999,0.0343,4112.9,4112.8,3.035]
[1759146689204,0.3171,4112.9,4112.8,3.035]
[1759146689720,0.3171,4112.9,4112.8,3.037]
[1759146691018,0.2828,4112.9,4112.8,3.037]
[1759146691211,0.3171,4113.1,4112.8,3.037]
[1759146691720,0.3171,4113.0,4112.8,3.037]
[1759146691912,0.3171,4112.9,4112.8,3.037]
[1759146694795,0.3171,4112.9,4112.8,0.002]
[1759146694996,2.74847445,4112.9,4112.8,0.002]
[1759146695607,0.3171,4112.9,4112.8,0.002]
[1759146696412,0.2828,4112.9,4112.8,0.002]
[1759146696595,0.1551,4113.1,4112.8,0.002]
[1759146697008,0.3171,4113.0,4112.8,0.002]
[1759146697520,2.7484466,4113.0,4112.8,0.002]
[1759146698224,0.3171,4113.0,4112.8,0.002]
[1759146698427,0.1208,4113.1,4112.8,0.002]
[1759146699029,0.12,4113.1,4112.8,0.002]
[1759146699228,0.12,4113.1,4112.8,0.02631433]
[1759146699734,2.55126602,4113.1,4112.8,0.02631433]
[1759146699916,0.12,4113.1,4112.9,14.5]
[1759146700941,2.43131534,4113.0,4112.9,14.5]
[1759146701098,2.86837718,4113.1,4112.9,14.5]
[1759146701797,2.86836774,4113.1,4112.9,14.5]
[1759146702434,2.43131534,4113.0,4112.9,14.5]
[1759146702631,5.31115572,4113.0,4112.9,14.5]
[1759146702831,5.31115572,4113.0,4112.8,0.002]
[1759146702832,2.43137445,4112.9,4112.8,0.002]
[1759146703003,2.71417445,4112.9,4112.8,0.002]
[1759146703200,2.74847445,4112.9,4112.8,0.002]
[1759146703600,2.98237445,4112.9,4112.8,0.002]
[1759146703825,4.68563391,4112.9,4112.8,0.002]
[1759146706105,6.14963391,4112.9,4112.8,0.002]
[1759146706405,9.18663391,4112.9,4112.8,0.002]
[1759146709205,12.18663391,4112.9,4112.8,0.002]
[1759146710907,17.01482048,4112.9,4112.8,0.002]
[1759146712606,16.69772048,4112.9,4112.8,0.002]
[1759146712941,17.01482048,4112.9,4112.8,0.002]
[1759146714144,17.80682048,4112.9,4112.8,0.002]
[1759146714374,18.56548443,4112.9,4112.8,0.002]
[1759146714713,18.94692211,4112.9,4112.8,0.002]
[1759146714912,18.91262211,4112.9,4112.8,0.002]
[1759146715257,13.04297159,4112.9,4112.8,0.002]
[1759146715443,13.36007159,4112.9,4112.8,0.002]
[1759146716157,12.25097159,4112.9,4112.8,0.002]
[1759146716520,12.25097159,4112.9,4112.4,0.2339]
[1759146716521,2.43161094,4112.5,4112.4,0.0359]
[1759146716721,8.58941094,4112.5,4112.4,0.0359]
[1759146717327,8.58941094,4112.5,4112.4,0.4843]
[1759146717841,5.43167007,4112.4,4112.3,0.002]
[1759146721889,3.0,4112.4,4112.3,0.002]
[1759146722166,5.43167007,4112.4,4112.3,0.002]
[1759146723954,5.65647007,4112.4,4112.3,0.002]
[1759146724159,8.43452953,4112.4,4112.3,0.002]
[1759146724470,10.63019491,4112.4,4112.3,0.002]
[1759146724959,4.68790661,4112.0,4111.9,0.002]
[1759146725149,13.31375713,4112.0,4111.9,0.002]
[1759146725335,14.35221285,4112.0,4111.9,0.002]
[1759146725535,4.68820235,4111.5,4111.4,0.002]
[1759146725741,13.31405287,4111.5,4111.4,0.002]
[1759146725948,17.13684645,4111.5,4111.4,0.002]
[1759146727076,17.6160335,4111.5,4111.4,0.002]
[1759146727276,19.31929296,4111.5,4111.4,0.002]
[1759146727844,19.31929296,4111.5,4110.5,0.002]
[1759146727845,3.2246757,4110.7,4110.5,0.002]
[1759146728064,14.85152622,4110.7,4110.5,0.002]
[1759146728264,15.35992622,4110.7,4110.5,0.002]
[1759146728466,16.39204271,4110.7,4110.5,0.002]
[1759146728682,16.48964642,4110.7,4110.5,0.002]
[1759146729403,16.20684642,4110.7,4110.5,0.002]
[1759146729950,16.48964642,4110.7,4110.5,0.002]
[1759146730482,16.20684642,4110.7,4110.5,0.002]
[1759146730881,15.98124642,4110.7,4110.5,0.002]
[1759146731278,16.49634642,4110.7,4110.5,0.002]
[1759146731571,17.96034642,4110.7,4110.5,0.002]
[1759146733605,17.67754642,4110.7,4110.5,0.002]
[1759146734105,17.96034642,4110.7,4110.5,0.002]
[1759146734313,17.67754642,4110.7,4110.5,0.002]
[1759146735475,17.44524642,4110.7,4110.5,0.002]
[1759146736503,17.67754642,4110.7,4110.5,0.002]
[1759146738010,17.44524642,4110.7,4110.5,0.002]
[1759146739810,17.34764271,4110.7,4110.5,0.002]
[1759146739980,17.34764271,4110.7,4110.6,0.6826]
[1759146740182,8.97473647,4110.7,4110.6,0.2369]
[1759146740380,8.59309204,4110.7,4110.6,0.6826]
[1759146740576,9.38509204,4110.7,4110.6,0.6826]
[1759146741020,9.2646757,4110.7,4110.6,0.6826]
[1759146741280,3.04,4110.7,4110.6,0.6826]
[1759146741730,6.04,4110.7,4110.6,0.6826]
[1759146742611,3.0,4110.7,4110.6,1.04151725]
[1759146742814,3.1626,4110.8,4110.6,1.04151725]
[1759146743120,0.1216,4110.8,4110.7,3.13760245]
[1759146743418,0.1216,4110.8,4110.7,17.63760245]
[1759146743589,0.1216,4111.1,4110.7,17.6132757]
[1759146743785,0.001,4111.5,4111.0,2.43247206]
[1759146743998,0.001,4111.5,4111.1,3.11303249]
[1759146744201,0.001,4111.5,4111.2,2.43237575]
[1759146744399,0.001,4111.5,4111.3,14.5]
[1759146744582,0.001,4111.5,4111.3,15.1806]
[1759146744804,0.001,4111.5,4111.4,0.4457]
[1759146745010,0.001,4111.5,4111.4,0.6806]
[1759146746988,0.001,4111.5,4111.4,2.44189666]
[1759146748215,0.001,4111.5,4111.4,0.6806]
[1759146748416,0.001,4111.5,4111.4,15.1806]
[1759146749135,0.0002,4111.5,4111.4,15.1806]
[1759146749935,0.0002,4111.5,4111.4,14.5]
[1759146749936,5.43240235,4111.5,4111.4,14.5]
[1759146750125,2.4325995,4110.9,4110.6,0.2369]
[1759146750324,5.47756435,4110.9,4110.6,0.2369]
[1759146750627,3.045,4110.9,4110.7,15.1806]
[1759146750834,3.045,4110.9,4110.8,0.6806]
[1759146751199,2.43239523,4111.2,4110.8,0.6806]
[1759146751394,3.046,4111.1,4110.7,14.5]
[1759146751601,3.046,4111.1,4110.9,0.6806]
[1759146751796,6.046,4111.1,4111.0,0.6806]
[1759146752230,8.478439,4111.1,4111.0,0.6806]
[1759146752601,5.43250378,4111.0,4110.7,14.5]
[1759146752806,2.43250378,4111.0,4110.7,14.5]
[1759146753001,3.046,4111.1,4110.7,14.5]
[1759146753236,3.0,4111.0,4110.8,0.6806]
[1759146753435,3.0,4111.0,4110.9,0.6806]
[1759146756440,5.43249817,4111.0,4110.9,0.6806]
[1759146756606,5.43249817,4111.0,4110.9,15.1806]
[1759146756936,5.43249817,4111.0,4110.9,14.5]
[1759146758520,3.0,4111.0,4110.9,14.5]
[1759146758929,3.0,4111.0,4110.9,15.1806]
[1759146759946,3.1676,4111.1,4110.9,15.1806]
[1759146760153,0.1216,4111.1,4111.0,0.6878]
[1759146761428,0.1216,4111.1,4111.0,0.71212498]
[1759146763565,0.1216,4111.1,4111.0,0.6878]
[1759146763728,0.1216,4111.1,4111.0,15.1878]
[1759146764848,0.001,4111.4,4111.0,15.5129961]
[1759146765155,0.001,4111.4,4111.1,0.6878]
[1759146765544,0.001,4111.4,4111.0,14.8251961]
[1759146765752,0.001,4111.4,4111.1,0.6878]
[1759146765947,0.001,4111.4,4111.0,14.5]
[1759146766154,0.001,4111.4,4111.1,0.6878]
[1759146766560,0.001,4111.4,4111.0,14.5]
[1759146766860,0.001,4111.4,4111.2,0.6878]
[1759146767061,2.43326186,4111.4,4111.2,0.6878]
[1759146767262,0.001,4111.4,4111.2,0.6878]
[1759146767556,0.001,4111.4,4111.3,0.2353]
[1759146767750,0.001,4111.4,4111.3,0.6878]
[1759146769435,2.43326151,4111.4,4111.3,0.6878]
[1759146769765,0.001,4111.4,4111.3,0.6878]
[1759146770166,0.001,4111.4,4111.3,15.1878]
[1759146770465,2.43326151,4111.4,4111.3,15.1878]
[1759146770764,0.001,4111.4,4111.3,15.1878]
[1759146772069,2.43326151,4111.4,4111.3,15.1878]
[1759146773873,2.43246151,4111.4,4111.3,15.1878]
[1759146774781,0.0002,4111.4,4111.3,15.1878]
[1759146775648,2.43246151,4111.4,4111.3,15.1898]
[1759146776447,0.0002,4111.4,4111.3,15.1898]
[1759146776873,2.43246151,4111.4,4111.3,15.1898]
[1759146777341,2.43246151,4111.4,4111.3,14.502]
[1759146777541,0.0002,4111.4,4111.3,14.502]
[1759146777973,2.43246151,4111.4,4111.3,14.502]
[1759146778151,2.43246151,4111.4,4111.3,14.7373]
[1759146778342,0.0002,4111.4,4111.3,14.7373]
[1759146778743,2.43246151,4111.4,4111.3,14.7373]
[1759146779655,2.43246151,4111.4,4111.3,15.1898]
[1759146781366,2.43246151,4111.4,4111.3,14.7373]
[1759146781774,2.43246151,4111.4,4111.3,14.502]
[1759146782027,5.66476151,4111.4,4111.3,14.502]
[1759146782378,11.32841284,4111.4,4111.3,0.002]
[1759146782564,16.43979662,4111.4,4111.3,0.002]
[1759146782879,17.23179662,4111.4,4111.3,0.002]
[1759146785380,16.94899662,4111.4,4111.3,0.002]
[1759146785556,16.71669662,4111.4,4111.3,0.002]
[1759146785759,11.88811284,4111.4,4111.3,0.002]
[1759146786079,10.73346151,4111.4,4111.3,0.002]
[1759146786445,3.0002,4111.4,4111.3,0.2373]
[1759146786691,8.60206151,4111.4,4111.3,0.6898]
[1759146787196,8.60206151,4111.4,4111.3,14.502]
[1759146787379,8.60206151,4111.4,4111.3,15.1898]
[1759146787575,6.1698,4111.4,4111.3,15.1898]
[1759146788559,0.0002,4111.4,4111.3,15.1898]
[1759146788803,0.0002,4111.4,4111.3,16.70878]
[1759146789167,3.0002,4111.4,4111.3,16.70878]
[1759146790044,0.0002,4111.4,4111.3,16.70878]
[1759146790186,0.0002,4111.4,4111.3,19.14110067]
[1759146791521,0.0002,4111.4,4111.3,16.70598]
[1759146791722,0.0002,4111.4,4111.3,14.502]
[1759146792421,5.94526151,4111.4,4111.3,0.002]
[1759146793648,5.43246151,4111.4,4111.3,0.002]
[1759146794036,5.66476151,4111.4,4111.3,0.002]
[1759146794847,7.54493458,4111.4,4111.3,0.002]
[1759146795340,7.26213458,4111.4,4111.3,0.002]
[1759146795853,7.54493458,4111.4,4111.3,0.002]